[Event "Eurasia Open Cup 2019"]
[Site "Ekaterinburg"]
[Date "2019.08.06"]
[Round "6.1"]
[White "Bocharov, Ivan"]
[Black "Pridorozhni, Aleksei"]
[Result "0-1"]
[ECO "A28"]
[WhiteElo "2559"]
[BlackElo "2586"]
[Annotator "ChessBase"]
[PlyCount "120"]
[EventDate "2019.07.31"]
[EventType "swiss"]
[EventCountry "RUS"]
[SourceTitle "playchess.com"]
[Source "ChessBase"]
[SourceQuality "1"]
[TimeControl "5400+30"]

1. c4 {[%emt 0:00:00]} e5 {[%emt 0:00:00]} 2. Nc3 {[%emt 0:00:00]} Nc6 {[%emt 0:00:00]} 3. Nf3 {[%emt 0:00:00]} Nf6 {[%emt 0:00:37]} 4. e3 {[%emt 0:00:00]} Bb4 {[%emt 0:00:48]} 5. Qc2 {[%emt 0:00:00]} a5 {[%emt 0:00:22]} 6. a3 {[%emt 0:02:00]} Bc5 {[%emt 0:00:54]} 7. Nb5 {[%emt 0:00:47]} d6 {[%emt 0:03:36]} 8. d4 {[%emt 0:01:37]} Ba7 {[%emt 0:00:39]} 9. Bd2 {[%emt 0:10:48]} exd4 {[%emt 0:03:08]} 10. exd4 {[%emt 0:00:28]} Bg4 {[%emt 0:00:10]} 11. Nxa7 {[%emt 0:10:30]} Rxa7 {[%emt 0:02:43]} 12. d5 {[%emt 0:01:20]} Bxf3 {[%emt 0:08:38]} 13. gxf3 {[%emt 0:00:04]} Nd4 {[%emt 0:00:23]} 14. Qc3 {[%emt 0:03:17]} Qe7+ {[%emt 0:00:56]} 15. Kd1 {[%emt 0:00:26]} c5 {[%emt 0:01:27]} 16. dxc6 {[%emt 0:01:01]} Ne6 {[%emt 0:00:03]} 17. Qe3 {[%emt 0:07:25]} bxc6 {[%emt 0:06:47]} 18. Rg1 {[%emt 0:00:01]} d5 {[%emt 0:10:54]} 19. Kc2 {[%emt 0:01:50]} O-O {[%emt 0:04:16]} 20. Re1 {[%emt 0:05:07]} g6 {[%emt 0:10:09]} 21. Bh3 {[%emt 0:02:58]} d4 {[%emt 0:04:54]} 22. Qe2 {[%emt 0:09:26]} Rd8 {[%emt 0:09:44]} 23. Kb1 {[%emt 0:00:30]} Re8 {[%emt 0:08:07]} 24. Bxe6 {[%emt 0:00:50]} Qxe6 {[%emt 0:00:39]} 25. Qd3 {[%emt 0:07:05]} Qd7 {[%emt 0:00:41]} 26. Bg5 {[%emt 0:02:29]} Rxe1+ {[%emt 0:00:16]} 27. Rxe1 {[%emt 0:01:07]} Kg7 {[%emt 0:00:06]} 28. Re5 {[%emt 0:05:19]} Qd6 {[%emt 0:03:58]} 29. Qe2 {[%emt 0:04:38]} a4 {[%emt 0:10:06]} 30. c5 {[%emt 0:02:09]} Qd7 {[%emt 0:00:26]} 31. Qd2 {[%emt 0:02:59]} Ng8 {[%emt 0:01:38]} 32. Re4 {[%emt 0:01:11]} f6 {[%emt 0:00:51]} 33. Bf4 {[%emt 0:00:16]} Qf5 {[%emt 0:00:18]} 34. Qxd4 {[%emt 0:00:57]} Ne7 {[%emt 0:00:36]} 35. Qd6 {[%emt 0:07:40]} Rd7 {[%emt 0:00:32]} 36. Qe6 {[%emt 0:00:29]} Qxe6 {[%emt 0:01:22]} 37. Rxe6 {[%emt 0:00:01]} Kf7 {[%emt 0:00:07]} 38. Re4 {[%emt 0:00:23]} Ra7 {[%emt 0:00:05]} 39. Bb8 {[%emt 0:01:25]} Ra8 {[%emt 0:00:32]} 40. Rb4 {[%emt 0:01:13]} Nd5 {[%emt 0:00:43]} 41. Rb7+ {[%emt 0:00:00]} Ke6 {[%emt 0:00:00]} 42. Kc2 {[%emt 0:00:53]} h5 {[%emt 0:00:20]} 43. Kd3 {[%emt 0:00:13]} g5 {[%emt 0:00:50]} 44. Bd6 {[%emt 0:01:01]} Ra5 {[%emt 0:02:39]} 45. Kc4 {[%emt 0:01:10]} Ra8 {[%emt 0:00:05]} 46. b4 {[%emt 0:02:02]} axb3 {[%emt 0:00:05]} 47. Kxb3 {[%emt 0:00:00]} h4 {[%emt 0:00:28]} 48. a4 {[%emt 0:00:00]} Ra6 {[%emt 0:00:27]} 49. Bc7 {[%emt 0:02:23]} Kf5 {[%emt 0:01:12]} 50. Bb6 {[%emt 0:05:02]} Kf4 {[%emt 0:01:48]} 51. Ra7 {[%emt 0:00:04]} Rxa7 {[%emt 0:00:02]} 52. Bxa7 {[%emt 0:00:02]} Kxf3 {[%emt 0:00:06]} 53. Bb8 {[%emt 0:02:04]} Ne7 {[%emt 0:00:37]} 54. a5 {[%emt 0:00:59]} Kxf2 {[%emt 0:00:25]} 55. a6 {[%emt 0:00:00]} Nc8 {[%emt 0:00:00]} 56. a7 {[%emt 0:01:07]} Nxa7 {[%emt 0:00:00]} 57. Bxa7 {[%emt 0:00:01]} g4 {[%emt 0:00:38]} 58. Bb8 {[%emt 0:00:41]} f5 {[%emt 0:00:00]} 59. Kc2 {[%emt 0:00:53]} g3 {[%emt 0:00:36]} 60. hxg3 {[%emt 0:00:02]} h3 {[%emt 0:00:00]} 0-1

[Event "Eurasia Open Cup 2019"]
[Site "Ekaterinburg"]
[Date "2019.08.06"]
[Round "6.2"]
[White "Sargsyan, Shant"]
[Black "Kunin, Vitaly"]
[Result "1/2-1/2"]
[ECO "C41"]
[WhiteElo "2529"]
[BlackElo "2527"]
[Annotator "ChessBase"]
[PlyCount "132"]
[EventDate "2019.07.31"]
[EventType "swiss"]
[EventCountry "RUS"]
[SourceTitle "playchess.com"]
[Source "ChessBase"]
[SourceQuality "1"]
[TimeControl "5400+30"]

1. e4 {[%emt 0:00:27]} d6 {[%emt 0:01:47]} 2. d4 {[%emt 0:00:00]} Nf6 {[%emt 0:00:06]} 3. Nc3 {[%emt 0:00:05]} e5 {[%emt 0:00:00]} 4. Nf3 {[%emt 0:01:04]} Nbd7 {[%emt 0:00:00]} 5. Bc4 {[%emt 0:00:37]} Be7 {[%emt 0:00:00]} 6. O-O {[%emt 0:00:02]} O-O {[%emt 0:00:29]} 7. Re1 {[%emt 0:00:36]} c6 {[%emt 0:00:10]} 8. a4 {[%emt 0:00:31]} exd4 {[%emt 0:00:30]} 9. Nxd4 {[%emt 0:01:07]} Ne5 {[%emt 0:00:41]} 10. Bb3 {[%emt 0:02:27]} Re8 {[%emt 0:00:56]} 11. h3 {[%emt 0:01:21]} Bd7 {[%emt 0:01:41]} 12. f4 {[%emt 0:02:59]} Ng6 {[%emt 0:00:09]} 13. Be3 {[%emt 0:00:54]} Qc7 {[%emt 0:14:25]} 14. Qf3 {[%emt 0:03:11]} Rad8 {[%emt 0:03:23]} 15. Rad1 {[%emt 0:01:55]} a6 {[%emt 0:00:26]} 16. g4 {[%emt 0:02:13]} c5 {[%emt 0:09:22]} 17. Nf5 {[%emt 0:00:37]} Bf8 {[%emt 0:06:23]} 18. Bd5 {[%emt 0:02:37]} Be6 {[%emt 0:05:35]} 19. Bf2 {[%emt 0:21:03]} Nxd5 {[%emt 0:04:39]} 20. Nxd5 {[%emt 0:01:28]} Bxd5 {[%emt 0:00:33]} 21. Rxd5 {[%emt 0:02:30]} b5 {[%emt 0:01:58]} 22. axb5 {[%emt 0:01:33]} axb5 {[%emt 0:00:08]} 23. Red1 {[%emt 0:03:28]} Qa5 {[%emt 0:05:24]} 24. h4 {[%emt 0:04:54]} Ne7 {[%emt 0:03:27]} 25. R5d2 {[%emt 0:20:59]} Nxf5 {[%emt 0:01:20]} 26. exf5 {[%emt 0:00:05]} d5 {[%emt 0:03:49]} 27. Rxd5 {[%emt 0:03:05]} Rxd5 {[%emt 0:00:20]} 28. Rxd5 {[%emt 0:08:20]} Qa1+ {[%emt 0:01:56]} 29. Kg2 {[%emt 0:01:47]} Qxb2 {[%emt 0:00:00]} 30. Qb3 {[%emt 0:00:53]} Qxb3 {[%emt 0:17:21]} 31. cxb3 {[%emt 0:00:01]} c4 {[%emt 0:00:55]} 32. bxc4 {[%emt 0:02:12]} bxc4 {[%emt 0:01:14]} 33. Bd4 {[%emt 0:00:23]} Be7 {[%emt 0:03:34]} 34. Re5 {[%emt 0:01:46]} f6 {[%emt 0:01:20]} 35. Re6 {[%emt 0:00:34]} Kf7 {[%emt 0:02:47]} 36. Rc6 {[%emt 0:00:10]} Rb8 {[%emt 0:00:39]} 37. Rc7 {[%emt 0:02:03]} Rb5 {[%emt 0:00:00]} 38. h5 {[%emt 0:00:55]} h6 {[%emt 0:00:35]} 39. Kf3 {[%emt 0:00:58]} c3 {[%emt 0:04:28]} 40. Ke4 {[%emt 0:01:37]} c2 {[%emt 0:00:23]} 41. Rxc2 {[%emt 0:00:29]} Rb7 {[%emt 0:00:05]} 42. Rc6 {[%emt 0:00:44]} Rd7 {[%emt 0:00:08]} 43. Ra6 {[%emt 0:02:37]} Rb7 {[%emt 0:00:31]} 44. Ra4 {[%emt 0:00:13]} Rd7 {[%emt 0:00:42]} 45. Ra2 {[%emt 0:01:14]} Rb7 {[%emt 0:00:00]} 46. Ra1 {[%emt 0:00:01]} Rd7 {[%emt 0:00:01]} 47. Ra4 {[%emt 0:00:06]} Kf8 {[%emt 0:01:12]} 48. Bb6 {[%emt 0:03:53]} Kf7 {[%emt 0:00:10]} 49. Ra8 {[%emt 0:00:00]} Rb7 {[%emt 0:00:00]} 50. Bd4 {[%emt 0:00:11]} Rd7 {[%emt 0:00:42]} 51. Rc8 {[%emt 0:00:31]} Rb7 {[%emt 0:00:00]} 52. Kd3 {[%emt 0:00:28]} Rd7 {[%emt 0:00:38]} 53. Ke3 {[%emt 0:00:07]} Rb7 {[%emt 0:00:40]} 54. Ke4 {[%emt 0:00:00]} Rd7 {[%emt 0:00:10]} 55. Ra8 {[%emt 0:01:45]} Rb7 {[%emt 0:00:00]} 56. Ra4 {[%emt 0:00:23]} Rd7 {[%emt 0:00:31]} 57. Be3 {[%emt 0:00:19]} Kf8 {[%emt 0:02:00]} 58. Ra6 {[%emt 0:01:21]} Kf7 {[%emt 0:00:26]} 59. Ra8 {[%emt 0:00:01]} Bd8 {[%emt 0:01:32]} 60. Kf3 {[%emt 0:01:18]} Be7 {[%emt 0:00:16]} 61. Ra2 {[%emt 0:00:36]} Bd8 {[%emt 0:00:17]} 62. Bc5 {[%emt 0:00:12]} Be7 {[%emt 0:00:53]} 63. Bxe7 {[%emt 0:00:00]} Rxe7 {[%emt 0:00:14]} 64. g5 {[%emt 0:00:47]} fxg5 {[%emt 0:00:22]} 65. fxg5 {[%emt 0:00:00]} hxg5 {[%emt 0:00:21]} 66. Kg4 {[%emt 0:00:02]} Re1 {[%emt 0:01:06]} 1/2-1/2

[Event "Eurasia Open Cup 2019"]
[Site "Ekaterinburg"]
[Date "2019.08.06"]
[Round "6.3"]
[White "Alekseev, Evgeny"]
[Black "Gleizerov, Evgeny"]
[Result "1-0"]
[ECO "C01"]
[WhiteElo "2645"]
[BlackElo "2498"]
[Annotator "ChessBase"]
[PlyCount "55"]
[EventDate "2019.07.31"]
[EventType "swiss"]
[EventCountry "RUS"]
[SourceTitle "playchess.com"]
[Source "ChessBase"]
[SourceQuality "1"]
[TimeControl "5400+30"]

1. e4 {[%emt 0:00:00]} e6 {[%emt 0:00:00]} 2. d4 {[%emt 0:00:00]} d5 {[%emt 0:00:00]} 3. Bd3 {[%emt 0:00:00]} c5 {[%emt 0:00:00]} 4. exd5 {[%emt 0:00:00]} exd5 {[%emt 0:00:00]} 5. Nf3 {[%emt 0:00:00]} c4 {[%emt 0:01:50]} 6. Be2 {[%emt 0:00:49]} Bd6 {[%emt 0:00:04]} 7. b3 {[%emt 0:03:09]} cxb3 {[%emt 0:00:06]} 8. axb3 {[%emt 0:00:17]} Ne7 {[%emt 0:00:04]} 9. O-O {[%emt 0:01:18]} Nbc6 {[%emt 0:00:21]} 10. Na3 {[%emt 0:01:46]} O-O {[%emt 0:06:11]} 11. c3 {[%emt 0:02:22]} a6 {[%emt 0:07:38]} 12. Nc2 {[%emt 0:01:11]} Rb8 {[%emt 0:00:52]} 13. Ne3 {[%emt 0:05:17]} b5 {[%emt 0:02:24]} 14. Bd3 {[%emt 0:05:21]} h6 {[%emt 0:02:54]} 15. Bc2 {[%emt 0:11:13]} a5 {[%emt 0:02:19]} 16. Qd3 {[%emt 0:01:47]} f5 {[%emt 0:00:14]} 17. Re1 {[%emt 0:04:54]} f4 {[%emt 0:19:58]} 18. Qh7+ {[%emt 0:04:40]} Kf7 {[%emt 0:01:22]} 19. Ng5+ {[%emt 0:00:19]} hxg5 {[%emt 0:00:50]} 20. Qh5+ {[%emt 0:00:32]} g6 {[%emt 0:00:46]} 21. Qh7+ {[%emt 0:03:40]} Ke8 {[%emt 0:00:20]} 22. Bxg6+ {[%emt 0:33:17]} Kd7 {[%emt 0:01:38]} 23. Nxd5 {[%emt 0:00:18]} Na7 {[%emt 0:10:07]} 24. Rxa5 {[%emt 0:03:01]} Qxa5 {[%emt 0:02:19]} 25. Rxe7+ {[%emt 0:00:49]} Kc6 {[%emt 0:04:02]} 26. Rxa7 {[%emt 0:01:46]} Qd8 {[%emt 0:00:00]} 27. Be4 {[%emt 0:01:03]} Rh8 {[%emt 0:00:51]} 28. Qg7 {[%emt 0:03:15]} 1-0

[Event "Eurasia Open Cup 2019"]
[Site "Ekaterinburg"]
[Date "2019.08.06"]
[Round "6.4"]
[White "Khismatullin, Denis"]
[Black "Davtyan, Artur"]
[Result "1-0"]
[ECO "A13"]
[WhiteElo "2618"]
[BlackElo "2440"]
[Annotator "ChessBase"]
[PlyCount "123"]
[EventDate "2019.07.31"]
[EventType "swiss"]
[EventCountry "RUS"]
[SourceTitle "playchess.com"]
[Source "ChessBase"]
[SourceQuality "1"]
[TimeControl "5400+30"]

1. c4 {[%emt 0:00:00]} e6 {[%emt 0:00:00]} 2. Nf3 {[%emt 0:00:00]} d5 {[%emt 0:00:00]} 3. g3 {[%emt 0:00:00]} Nf6 {[%emt 0:01:13]} 4. Bg2 {[%emt 0:00:12]} dxc4 {[%emt 0:00:25]} 5. Qa4+ {[%emt 0:00:00]} Bd7 {[%emt 0:00:14]} 6. Qxc4 {[%emt 0:00:00]} c5 {[%emt 0:00:36]} 7. Ne5 {[%emt 0:02:49]} Qc8 {[%emt 0:00:00]} 8. Qd3 {[%emt 0:00:36]} Nc6 {[%emt 0:01:16]} 9. Nxd7 {[%emt 0:00:10]} Qxd7 {[%emt 0:03:08]} 10. Qxd7+ {[%emt 0:02:10]} Kxd7 {[%emt 0:00:01]} 11. Nc3 {[%emt 0:00:19]} Be7 {[%emt 0:00:24]} 12. b3 {[%emt 0:00:27]} Rhd8 {[%emt 0:02:27]} 13. Bb2 {[%emt 0:01:11]} Rac8 {[%emt 0:00:08]} 14. e3 {[%emt 0:00:00]} Ke8 {[%emt 0:03:08]} 15. Ke2 {[%emt 0:00:40]} Rd7 {[%emt 0:07:34]} 16. Nb5 {[%emt 0:14:46]} a6 {[%emt 0:33:17]} 17. Na3 {[%emt 0:02:18]} b5 {[%emt 0:01:33]} 18. Nc2 {[%emt 0:03:29]} Kf8 {[%emt 0:20:17]} 19. Rhc1 {[%emt 0:01:10]} Nd5 {[%emt 0:01:59]} 20. Ne1 {[%emt 0:01:33]} Na5 {[%emt 0:07:13]} 21. Nf3 {[%emt 0:14:02]} Rdd8 {[%emt 0:10:16]} 22. Ne5 {[%emt 0:04:30]} f6 {[%emt 0:01:49]} 23. Nf3 {[%emt 0:05:57]} Kf7 {[%emt 0:00:01]} 24. h4 {[%emt 0:05:40]} c4 {[%emt 0:01:00]} 25. Bh3 {[%emt 0:02:36]} Bc5 {[%emt 0:01:39]} 26. Rcb1 {[%emt 0:06:02]} Rc6 {[%emt 0:02:15]} 27. Bc1 {[%emt 0:04:07]} c3 {[%emt 0:00:35]} 28. e4 {[%emt 0:06:46]} c2 {[%emt 0:00:02]} 29. exd5 {[%emt 0:00:00]} Rxd5 {[%emt 0:00:58]} 30. Rb2 {[%emt 0:00:00]} Ba3 {[%emt 0:00:01]} 31. Rxc2 {[%emt 0:02:37]} Rxc2 {[%emt 0:00:32]} 32. Bxa3 {[%emt 0:00:05]} g6 {[%emt 0:00:58]} 33. Rc1 {[%emt 0:03:22]} Rxc1 {[%emt 0:00:28]} 34. Bxc1 {[%emt 0:00:36]} Nc6 {[%emt 0:00:30]} 35. Bg2 {[%emt 0:01:58]} b4 {[%emt 0:00:23]} 36. Ne1 {[%emt 0:01:47]} Nd4+ {[%emt 0:00:33]} 37. Kd1 {[%emt 0:00:15]} Ra5 {[%emt 0:00:33]} 38. Bb2 {[%emt 0:02:21]} e5 {[%emt 0:00:25]} 39. Bxd4 {[%emt 0:01:55]} exd4 {[%emt 0:00:03]} 40. Nc2 {[%emt 0:01:21]} Rxa2 {[%emt 0:00:02]} 41. Bf1 {[%emt 0:01:13]} Ra5 {[%emt 0:01:27]} 42. Bc4+ {[%emt 0:01:12]} Ke7 {[%emt 0:01:02]} 43. Nxb4 {[%emt 0:00:00]} Ra1+ {[%emt 0:00:00]} 44. Ke2 {[%emt 0:01:08]} a5 {[%emt 0:00:00]} 45. Nc6+ {[%emt 0:00:00]} Kd6 {[%emt 0:00:00]} 46. Nxd4 {[%emt 0:00:00]} a4 {[%emt 0:00:30]} 47. bxa4 {[%emt 0:00:05]} Rxa4 {[%emt 0:00:04]} 48. d3 {[%emt 0:00:36]} Ra8 {[%emt 0:00:18]} 49. Kf3 {[%emt 0:00:00]} Ke5 {[%emt 0:00:07]} 50. Nb5 {[%emt 0:00:31]} f5 {[%emt 0:00:01]} 51. d4+ {[%emt 0:00:21]} Kf6 {[%emt 0:00:00]} 52. Ke3 {[%emt 0:02:34]} h6 {[%emt 0:00:00]} 53. d5 {[%emt 0:00:06]} g5 {[%emt 0:00:13]} 54. h5 {[%emt 0:00:22]} Ra1 {[%emt 0:01:17]} 55. d6 {[%emt 0:04:27]} f4+ {[%emt 0:03:21]} 56. gxf4 {[%emt 0:00:10]} gxf4+ {[%emt 0:00:00]} 57. Ke4 {[%emt 0:00:06]} Ra6 {[%emt 0:01:12]} 58. Nc7 {[%emt 0:00:28]} Ra1 {[%emt 0:00:31]} 59. Ne8+ {[%emt 0:00:13]} Kg5 {[%emt 0:00:32]} 60. d7 {[%emt 0:00:39]} Ra8 {[%emt 0:00:16]} 61. Nc7 {[%emt 0:00:08]} Rh8 {[%emt 0:00:43]} 62. Ne8 {[%emt 0:00:06]} 1-0

[Event "Eurasia Open Cup 2019"]
[Site "Ekaterinburg"]
[Date "2019.08.06"]
[Round "6.5"]
[White "Kostenko, Petr"]
[Black "Kokarev, Dmitry"]
[Result "0-1"]
[ECO "A48"]
[WhiteElo "2471"]
[BlackElo "2607"]
[Annotator "ChessBase"]
[PlyCount "126"]
[EventDate "2019.07.31"]
[EventType "swiss"]
[EventCountry "RUS"]
[SourceTitle "playchess.com"]
[Source "ChessBase"]
[SourceQuality "1"]
[TimeControl "5400+30"]

1. d4 {[%emt 0:00:00]} Nf6 {[%emt 0:00:00]} 2. Nf3 {[%emt 0:00:00]} g6 {[%emt 0:00:00]} 3. Nbd2 {[%emt 0:00:00]} c5 {[%emt 0:00:09]} 4. dxc5 {[%emt 0:01:35]} Qa5 {[%emt 0:00:00]} 5. a3 {[%emt 0:01:34]} Qxc5 {[%emt 0:00:00]} 6. b4 {[%emt 0:00:07]} Qc7 {[%emt 0:00:29]} 7. Bb2 {[%emt 0:00:05]} Bg7 {[%emt 0:00:57]} 8. e3 {[%emt 0:00:17]} O-O {[%emt 0:00:19]} 9. Be2 {[%emt 0:00:38]} b6 {[%emt 0:00:00]} 10. O-O {[%emt 0:00:53]} Bb7 {[%emt 0:00:17]} 11. c4 {[%emt 0:00:25]} d6 {[%emt 0:00:00]} 12. Rc1 {[%emt 0:01:25]} Nbd7 {[%emt 0:00:05]} 13. Nd4 {[%emt 0:03:03]} a6 {[%emt 0:02:02]} 14. Bf3 {[%emt 0:05:42]} Rfc8 {[%emt 0:00:37]} 15. Qe2 {[%emt 0:03:02]} Bxf3 {[%emt 0:05:20]} 16. N2xf3 {[%emt 0:01:33]} Qb7 {[%emt 0:00:00]} 17. Rfd1 {[%emt 0:00:24]} Rc7 {[%emt 0:06:02]} 18. Rc2 {[%emt 0:07:42]} Rac8 {[%emt 0:00:59]} 19. Rdc1 {[%emt 0:00:46]} Ne4 {[%emt 0:02:06]} 20. Ne1 {[%emt 0:06:23]} Ne5 {[%emt 0:07:34]} 21. Nb3 {[%emt 0:00:58]} d5 {[%emt 0:04:59]} 22. cxd5 {[%emt 0:15:54]} Rxc2 {[%emt 0:00:22]} 23. Rxc2 {[%emt 0:00:06]} Rxc2 {[%emt 0:00:09]} 24. Qxc2 {[%emt 0:00:04]} Qxd5 {[%emt 0:00:15]} 25. Bd4 {[%emt 0:03:00]} Nc4 {[%emt 0:05:12]} 26. a4 {[%emt 0:09:35]} e5 {[%emt 0:06:46]} 27. Ba1 {[%emt 0:00:44]} Bf8 {[%emt 0:03:41]} 28. Qd3 {[%emt 0:04:05]} Nf6 {[%emt 0:01:58]} 29. b5 {[%emt 0:04:32]} axb5 {[%emt 0:01:40]} 30. axb5 {[%emt 0:00:05]} Bd6 {[%emt 0:06:23]} 31. f4 {[%emt 0:04:46]} Bb4 {[%emt 0:09:50]} 32. e4 {[%emt 0:06:24]} Qxe4 {[%emt 0:06:03]} 33. Qxe4 {[%emt 0:00:12]} Nxe4 {[%emt 0:00:35]} 34. Nd3 {[%emt 0:00:47]} Bc3 {[%emt 0:00:00]} 35. fxe5 {[%emt 0:02:40]} Bxa1 {[%emt 0:01:30]} 36. Nxa1 {[%emt 0:00:00]} Nc3 {[%emt 0:00:00]} 37. Kf2 {[%emt 0:00:22]} f6 {[%emt 0:04:37]} 38. exf6 {[%emt 0:00:00]} Kf7 {[%emt 0:00:00]} 39. Nc2 {[%emt 0:01:05]} Nxb5 {[%emt 0:00:00]} 40. g4 {[%emt 0:00:58]} Kxf6 {[%emt 0:00:18]} 41. h4 {[%emt 0:00:41]} Ke6 {[%emt 0:02:45]} 42. Ncb4 {[%emt 0:01:47]} Nc3 {[%emt 0:00:42]} 43. Kg3 {[%emt 0:01:05]} Ne5 {[%emt 0:01:41]} 44. Nf4+ {[%emt 0:05:08]} Kd6 {[%emt 0:00:00]} 45. g5 {[%emt 0:00:00]} Ne4+ {[%emt 0:00:51]} 46. Kg2 {[%emt 0:00:32]} b5 {[%emt 0:00:00]} 47. Kh3 {[%emt 0:04:01]} Nc6 {[%emt 0:04:12]} 48. Nbd3 {[%emt 0:00:42]} Nc5 {[%emt 0:00:22]} 49. Nf2 {[%emt 0:03:09]} Ke5 {[%emt 0:04:51]} 50. Ne2 {[%emt 0:00:03]} b4 {[%emt 0:00:14]} 51. Ng4+ {[%emt 0:00:05]} Kf5 {[%emt 0:01:31]} 52. Nc1 {[%emt 0:00:38]} Ne5 {[%emt 0:01:00]} 53. Nf6 {[%emt 0:01:13]} h5 {[%emt 0:00:21]} 54. Nd5 {[%emt 0:00:21]} b3 {[%emt 0:00:50]} 55. Nxb3 {[%emt 0:00:35]} Nxb3 {[%emt 0:00:36]} 56. Kg3 {[%emt 0:00:32]} Nd4 {[%emt 0:00:27]} 57. Nc7 {[%emt 0:00:00]} Ke4 {[%emt 0:00:20]} 58. Ne8 {[%emt 0:00:00]} Nf5+ {[%emt 0:00:12]} 59. Kh3 {[%emt 0:00:00]} Nd3 {[%emt 0:00:20]} 60. Nf6+ {[%emt 0:00:00]} Kf3 {[%emt 0:00:09]} 61. Nh7 {[%emt 0:00:07]} Nf4+ {[%emt 0:00:20]} 62. Kh2 {[%emt 0:00:04]} Kg4 {[%emt 0:00:00]} 63. Nf8 {[%emt 0:00:07]} Kxh4 {[%emt 0:00:08]} 0-1

[Event "Eurasia Open Cup 2019"]
[Site "Ekaterinburg"]
[Date "2019.08.06"]
[Round "6.6"]
[White "Kozionov, Kirill"]
[Black "Shaposhnikov, Evgeny"]
[Result "1/2-1/2"]
[ECO "E09"]
[WhiteElo "2454"]
[BlackElo "2575"]
[Annotator "ChessBase"]
[PlyCount "86"]
[EventDate "2019.07.31"]
[EventType "swiss"]
[EventCountry "RUS"]
[SourceTitle "playchess.com"]
[Source "ChessBase"]
[SourceQuality "1"]
[TimeControl "5400+30"]

1. d4 {[%emt 0:00:00]} Nf6 {[%emt 0:13:16]} 2. c4 {[%emt 0:00:00]} e6 {[%emt 0:00:13]} 3. g3 {[%emt 0:00:16]} d5 {[%emt 0:00:50]} 4. Nf3 {[%emt 0:00:19]} Bb4+ {[%emt 0:00:00]} 5. Bd2 {[%emt 0:00:00]} Be7 {[%emt 0:00:08]} 6. Bg2 {[%emt 0:00:49]} O-O {[%emt 0:00:08]} 7. O-O {[%emt 0:00:00]} Nbd7 {[%emt 0:00:56]} 8. Qc2 {[%emt 0:01:08]} c6 {[%emt 0:00:11]} 9. Bf4 {[%emt 0:00:49]} Nh5 {[%emt 0:00:44]} 10. Bc1 {[%emt 0:00:25]} Nhf6 {[%emt 0:00:24]} 11. Nbd2 {[%emt 0:01:19]} b6 {[%emt 0:00:50]} 12. e4 {[%emt 0:00:20]} a5 {[%emt 0:00:04]} 13. b3 {[%emt 0:01:22]} Ba6 {[%emt 0:00:40]} 14. Bb2 {[%emt 0:00:00]} Rc8 {[%emt 0:00:07]} 15. Rfe1 {[%emt 0:03:03]} h6 {[%emt 0:05:36]} 16. Rad1 {[%emt 0:00:42]} Bb4 {[%emt 0:00:26]} 17. a3 {[%emt 0:19:52]} Be7 {[%emt 0:05:28]} 18. Ne5 {[%emt 0:03:03]} Nxe5 {[%emt 0:03:46]} 19. dxe5 {[%emt 0:00:11]} Nd7 {[%emt 0:00:22]} 20. cxd5 {[%emt 0:08:43]} cxd5 {[%emt 0:01:47]} 21. Qb1 {[%emt 0:00:00]} d4 {[%emt 0:02:03]} 22. Nf3 {[%emt 0:06:37]} Qc7 {[%emt 0:10:17]} 23. Nxd4 {[%emt 0:02:48]} Nxe5 {[%emt 0:02:05]} 24. f4 {[%emt 0:01:25]} Nc6 {[%emt 0:03:48]} 25. Nxc6 {[%emt 0:06:59]} Qxc6 {[%emt 0:00:00]} 26. Rc1 {[%emt 0:00:06]} Qd7 {[%emt 0:01:50]} 27. Red1 {[%emt 0:04:46]} Rxc1 {[%emt 0:01:37]} 28. Qxc1 {[%emt 0:00:46]} Bc5+ {[%emt 0:01:11]} 29. Kh1 {[%emt 0:00:12]} Qe7 {[%emt 0:02:04]} 30. b4 {[%emt 0:11:47]} axb4 {[%emt 0:03:09]} 31. axb4 {[%emt 0:00:05]} Bxb4 {[%emt 0:00:59]} 32. Bxg7 {[%emt 0:04:13]} Kxg7 {[%emt 0:01:32]} 33. Qa1+ {[%emt 0:00:03]} Qf6 {[%emt 0:03:55]} 34. Qxa6 {[%emt 0:02:28]} Rd8 {[%emt 0:03:24]} 35. Rxd8 {[%emt 0:03:46]} Qxd8 {[%emt 0:00:43]} 36. Qa1+ {[%emt 0:00:00]} Kg8 {[%emt 0:00:20]} 37. e5 {[%emt 0:01:53]} Kg7 {[%emt 0:00:30]} 38. Be4 {[%emt 0:03:16]} Qd2 {[%emt 0:00:27]} 39. Qf1 {[%emt 0:00:17]} Bc5 {[%emt 0:01:40]} 40. Bd3 {[%emt 0:03:19]} Qe3 {[%emt 0:01:17]} 41. Kg2 {[%emt 0:00:00]} Qd2+ {[%emt 0:01:25]} 42. Qe2 {[%emt 0:00:13]} Qxe2+ {[%emt 0:01:37]} 43. Bxe2 {[%emt 0:00:00]} f6 {[%emt 0:00:41]} 1/2-1/2

[Event "Eurasia Open Cup 2019"]
[Site "Ekaterinburg"]
[Date "2019.08.06"]
[Round "6.7"]
[White "Nesterov, Arseniy"]
[Black "Zhigalko, Andrey"]
[Result "1-0"]
[ECO "E73"]
[WhiteElo "2451"]
[BlackElo "2549"]
[Annotator "ChessBase"]
[PlyCount "83"]
[EventDate "2019.07.31"]
[EventType "swiss"]
[EventCountry "RUS"]
[SourceTitle "playchess.com"]
[Source "ChessBase"]
[SourceQuality "1"]
[TimeControl "5400+30"]

1. d4 {[%emt 0:00:00]} Nf6 {[%emt 0:00:00]} 2. c4 {[%emt 0:00:00]} g6 {[%emt 0:00:00]} 3. Nc3 {[%emt 0:00:00]} Bg7 {[%emt 0:00:00]} 4. e4 {[%emt 0:00:00]} d6 {[%emt 0:00:00]} 5. Be2 {[%emt 0:00:00]} O-O {[%emt 0:00:00]} 6. Bg5 {[%emt 0:00:00]} Na6 {[%emt 0:00:00]} 7. Qd2 {[%emt 0:00:00]} Qe8 {[%emt 0:00:22]} 8. Bd1 {[%emt 0:00:05]} Qc6 {[%emt 0:01:19]} 9. Qe2 {[%emt 0:05:56]} h6 {[%emt 0:01:59]} 10. Bd2 {[%emt 0:02:52]} Qb6 {[%emt 0:03:41]} 11. Nf3 {[%emt 0:03:43]} c5 {[%emt 0:05:33]} 12. e5 {[%emt 0:03:49]} Nh5 {[%emt 0:19:14]} 13. dxc5 {[%emt 0:21:40]} Nxc5 {[%emt 0:13:41]} 14. O-O {[%emt 0:12:39]} Qxb2 {[%emt 0:09:43]} 15. Rb1 {[%emt 0:00:17]} Qa3 {[%emt 0:00:05]} 16. Nd5 {[%emt 0:02:28]} Qxa2 {[%emt 0:01:09]} 17. Rb5 {[%emt 0:01:47]} Bd7 {[%emt 0:10:49]} 18. Ra5 {[%emt 0:01:23]} Qb2 {[%emt 0:03:15]} 19. Qe3 {[%emt 0:07:16]} b6 {[%emt 0:07:49]} 20. Bc3 {[%emt 0:00:16]} Qb1 {[%emt 0:00:00]} 21. Nxe7+ {[%emt 0:03:58]} Kh7 {[%emt 0:00:48]} 22. Rxc5 {[%emt 0:07:08]} bxc5 {[%emt 0:05:48]} 23. Nd2 {[%emt 0:00:10]} Qb6 {[%emt 0:12:03]} 24. Bxh5 {[%emt 0:00:43]} dxe5 {[%emt 0:00:00]} 25. Bf3 {[%emt 0:00:57]} Rae8 {[%emt 0:01:28]} 26. Nd5 {[%emt 0:00:04]} Qc6 {[%emt 0:01:43]} 27. Ra1 {[%emt 0:02:18]} a6 {[%emt 0:00:18]} 28. Nb3 {[%emt 0:02:24]} e4 {[%emt 0:00:21]} 29. Bxg7 {[%emt 0:00:11]} Kxg7 {[%emt 0:00:39]} 30. Bxe4 {[%emt 0:02:03]} Qd6 {[%emt 0:00:46]} 31. Qc3+ {[%emt 0:01:52]} Qe5 {[%emt 0:00:02]} 32. Nxc5 {[%emt 0:00:55]} Bc6 {[%emt 0:01:29]} 33. Qxe5+ {[%emt 0:00:35]} Rxe5 {[%emt 0:00:00]} 34. f4 {[%emt 0:00:11]} Ree8 {[%emt 0:00:44]} 35. Rxa6 {[%emt 0:00:49]} Rc8 {[%emt 0:00:00]} 36. Nd3 {[%emt 0:00:32]} Bb7 {[%emt 0:00:46]} 37. Ra4 {[%emt 0:00:18]} Rfe8 {[%emt 0:00:13]} 38. Bf3 {[%emt 0:00:11]} g5 {[%emt 0:01:13]} 39. Ra7 {[%emt 0:01:01]} Ba8 {[%emt 0:01:27]} 40. Ne5 {[%emt 0:00:16]} Rf8 {[%emt 0:01:00]} 41. Nb6 {[%emt 0:00:30]} Rc5 {[%emt 0:00:02]} 42. Bxa8 {[%emt 0:00:15]} 1-0